fUST/lending_fUST_20250916
["ID","MTS","AMOUNT","RATE_DAILY","PERIOD"]
[385658372,1757952643185,-1000.0,0.00025,2]
[385658373,1757952643194,-1000.0,0.00025,2]
[385658374,1757952643204,-1000.0,0.00025,2]
[385658375,1757952643213,-1000.0,0.00025,2]
[385658376,1757952643223,-151.0,0.00025,7]
[385658377,1757952643233,-151.0,0.00025,7]
[385658378,1757952643242,-151.0,0.0002503,7]
[385658379,1757952643251,-151.0,0.0002503,7]
[385658380,1757952643260,-151.0,0.0002503,7]
[385658381,1757952643269,-151.0,0.0002503,7]
[385658382,1757952643278,-242.409411,0.0002503,7]
[385658383,1757952643287,-174.0,0.0002503,3]
[385658384,1757952643296,-174.0,0.0002503,3]
[385658385,1757952643305,-174.0,0.0002503,3]
[385658386,1757952643314,-328.0,0.0002503,3]
[385658387,1757952643323,-328.0,0.0002503,3]
[385658388,1757952643332,-328.0,0.0002503,3]
[385658389,1757952643341,-328.0,0.0002503,3]
[385658390,1757952643350,-328.0,0.0002503,3]
[385658391,1757952643359,-174.0,0.00025073,3]
[385658392,1757952643370,-174.42560608,0.00025073,3]
[385658393,1757952643379,-328.0,0.00025073,3]
[385658394,1757952643388,-328.0,0.00025073,3]
[385658395,1757952643397,-328.0,0.00025073,3]
[385658396,1757952643407,-328.0,0.00025073,3]
[385658397,1757952643416,-328.0,0.00025073,3]
[385658398,1757952643425,-328.0,0.00025073,3]
[385658399,1757952643434,-328.0,0.00025073,3]
[385658400,1757952643443,-328.0,0.00025073,3]
[385658401,1757952643452,-328.0,0.00025073,3]
[385658402,1757952643463,-230.36223425,0.00025073,3]
[385658403,1757952643473,-151.0,0.00025073,7]
[385658404,1757952643483,-151.0,0.00025073,7]
[385658405,1757952643492,-151.0,0.00025073,7]
[385658406,1757952643503,-151.0,0.00025088,7]
[385658407,1757952643512,-151.0,0.00025088,7]
[385658408,1757952643521,-361.0,0.00025088,2]
[385658409,1757952643530,-720.0,0.00025089,20]
[385658410,1757952643541,-560.0,0.00025092,2]
[385658411,1757952643551,-361.0,0.00025153,7]
[385658412,1757952643561,-160.0,0.00025161,2]
[385658413,1757952643570,-151.0,0.0002517,7]
[385658414,1757952643579,-151.0,0.0002517,7]
[385658415,1757952643588,-151.0,0.0002517,7]
[385658416,1757952643597,-151.0,0.0002517,7]
[385658417,1757952643607,-159.39827,0.0002517,7]
[385658418,1757952643617,-151.0,0.0002517,7]
[385658419,1757952643626,-159.39827,0.0002517,7]
[385658420,1757952643635,-159.39827,0.0002517,7]
[385658421,1757952643644,-159.39827,0.0002517,7]
[385658422,1757952643654,-151.0,0.0002517,7]
[385658423,1757952643663,-151.0,0.0002517,7]
[385658424,1757952643672,-151.0,0.0002517,7]
[385658425,1757952643681,-151.0,0.0002517,7]
[385658426,1757952643690,-151.0,0.0002517,7]
[385658427,1757952643699,-151.0,0.0002517,7]
[385658428,1757952643709,-151.0,0.0002517,7]
[385658429,1757952643718,-151.0,0.0002517,7]
[385658430,1757952643726,-151.0,0.0002517,7]
[385658431,1757952643735,-153.571194,0.0002517,7]
[385658432,1757952643744,-151.0,0.0002517,7]
[385658433,1757952643753,-151.0,0.0002517,7]
[385658434,1757952643762,-151.0,0.0002517,7]
[385658435,1757952643772,-218.167091,0.0002517,7]
[385658436,1757952643781,-927.0,0.0002517,2]
[385658437,1757952643790,-712.64554417,0.00025195,2]
[385658438,1757952643799,-217.82061966,0.00025205,7]
[385658439,1757952643809,-160.0,0.00025205,7]
[385658440,1757952643818,-480.0,0.00025205,3]
[385658441,1757952643827,-480.0,0.00025205,3]
[385658442,1757952643837,-480.0,0.00025205,3]
[385658443,1757952643846,-480.0,0.00025205,3]
[385658444,1757952643854,-480.0,0.00025205,3]
[385658445,1757952643865,-480.0,0.00025205,3]
[385658446,1757952643874,-151.0,0.00025205,7]
[385658447,1757952643883,-480.0,0.00025205,3]
[385658448,1757952643892,-480.0,0.00025205,3]
[385658449,1757952643901,-480.0,0.00025205,3]
[385658450,1757952643911,-174.48234282,0.00025205,3]
[385658451,1757952643920,-480.0,0.00025205,3]
[385658452,1757952643929,-415.14378887,0.00025205,3]
[385658453,1757952643939,-480.0,0.00025205,3]
[385658454,1757952643949,-480.0,0.00025205,3]
[385658455,1757952643959,-480.0,0.00025205,3]
[385658456,1757952643971,-480.0,0.00025205,3]
[385658457,1757952643980,-480.0,0.00025205,3]
[385658458,1757952643989,-423.75429237,0.00025205,3]
[385658459,1757952643999,-480.0,0.00025205,3]
[385658460,1757952644009,-480.0,0.00025205,3]
[385658461,1757952644019,-506.72,0.00025205,3]
[385658462,1757952644028,-480.0,0.00025205,3]
[385658463,1757952644038,-480.0,0.00025205,3]
[385658464,1757952644049,-480.0,0.00025205,3]
[385658465,1757952644058,-480.0,0.00025205,3]
[385658466,1757952644068,-480.0,0.00025205,3]
[385658467,1757952644077,-480.0,0.00025205,3]
[385658468,1757952644086,-480.0,0.00025205,3]
[385658469,1757952644098,-480.0,0.00025205,3]
[385658470,1757952644108,-480.0,0.00025205,3]
[385658471,1757952644122,-504.29,0.00025205,3]
[385658472,1757952644131,-492.84,0.00025205,3]
[385658473,1757952644140,-480.0,0.00025205,3]
[385658474,1757952644149,-480.0,0.00025205,3]
[385658475,1757952644158,-480.0,0.00025205,3]
[385658476,1757952644168,-480.0,0.00025205,3]
[385658477,1757952644177,-498.98778681,0.00025205,3]
[385658478,1757952644186,-480.0,0.00025205,3]
[385658479,1757952644196,-2363.02,0.00025205,3]
[385658480,1757952644206,-480.0,0.00025205,3]
[385658481,1757952644218,-480.0,0.00025205,3]
[385658482,1757952644228,-480.0,0.00025205,3]
[385658483,1757952644240,-746.3,0.00025205,3]
[385658484,1757952644249,-4376.03,0.00025205,3]
[385658485,1757952644258,-480.0,0.00025205,3]
[385658486,1757952644268,-480.0,0.00025205,3]
[385658487,1757952644280,-480.0,0.00025205,3]
[385658488,1757952644290,-3038.76,0.00025205,3]
[385658489,1757952644300,-480.0,0.00025205,3]
[385658490,1757952644310,-480.0,0.00025205,3]
[385658491,1757952644321,-480.0,0.00025205,3]
[385658492,1757952644331,-480.0,0.00025205,3]
[385658493,1757952644340,-480.0,0.00025205,3]
[385658494,1757952644349,-480.0,0.00025205,3]
[385658495,1757952644359,-480.0,0.00025205,3]
[385658496,1757952644371,-480.0,0.00025205,3]
[385658497,1757952644380,-480.0,0.00025205,3]
[385658498,1757952644389,-480.0,0.00025205,3]
[385658499,1757952644488,-480.0,0.00025205,3]
[385658500,1757952644497,-480.0,0.00025205,3]
[385658501,1757952644507,-480.0,0.00025205,3]
[385658502,1757952644518,-480.0,0.00025205,3]
[385658503,1757952644529,-480.0,0.00025205,3]
[385658504,1757952644540,-629.66,0.00025205,3]
[385658505,1757952644550,-480.0,0.00025205,3]
[385658506,1757952644559,-480.0,0.00025205,3]
[385658507,1757952644571,-480.0,0.00025205,3]
[385658508,1757952644580,-480.0,0.00025205,3]
[385658509,1757952644589,-480.0,0.00025205,3]
[385658510,1757952644600,-480.0,0.00025205,3]
[385658511,1757952644610,-480.0,0.00025205,3]
[385658512,1757952644621,-151.51532533,0.00025205,3]
[385658513,1757952644630,-480.0,0.00025205,3]
[385658514,1757952644640,-480.0,0.00025205,3]
[385658515,1757952644650,-480.0,0.00025205,3]
[385658516,1757952644661,-480.0,0.00025205,3]
[385658517,1757952644672,-480.0,0.00025205,3]
[385658518,1757952644683,-1283.5,0.00025205,3]
[385658519,1757952644693,-480.0,0.00025205,3]
[385658520,1757952644704,-480.0,0.00025205,3]
[385658521,1757952644713,-151.0,0.00025206,2]
[385658522,1757952644724,-151.0,0.00025206,2]
[385658523,1757952644735,-349.0,0.00025206,2]
[385658524,1757952644743,-151.0,0.00025206,2]
[385658525,1757952644753,-22.0121467,0.00025206,2]
[385658526,1757952644771,-128.9878533,0.00025206,2]
[385658527,1757952644780,-550.0,0.00025206,2]
[385658528,1757952644789,-500.0,0.00025206,2]
[385658529,1757952644798,-233.1556791,0.00025206,2]
[385658530,1757952644808,-364.57958604,0.00025206,2]
[385658531,1757952644985,-5000.0,0.00022223,2]
[385658532,1757952644995,-602.35,0.00024657,3]
[385658533,1757952645005,-602.35,0.00024931,3]
[385658534,1757952645014,-602.35,0.00025205,3]
[385658535,1757952645024,-135.42041396,0.00025206,2]
[385658536,1757952645033,-500.0,0.00025206,2]
[385658537,1757952645042,-151.0,0.00025206,2]
[385658538,1757952645052,-500.0,0.00025206,2]
[385658539,1757952645062,-1000.0,0.00025221,2]
[385658540,1757952645071,-809.15525644,0.00025221,2]
[385658541,1757952645080,-1000.0,0.00025221,2]
[385658542,1757952645089,-1000.0,0.00025221,2]
[385658543,1757952645098,-1000.0,0.00025221,2]
[385658544,1757952645108,-153.0,0.00025233,2]
[385658545,1757952645119,-160.0,0.00025241,2]
[385658546,1757952645128,-500.0,0.00025273,2]
[385658547,1757952645137,-500.0,0.00025273,2]
[385658548,1757952645147,-150.0,0.00025273,2]
[385658549,1757952645157,-150.0,0.00025273,2]
[385658550,1757952645166,-160.76537437,0.00025273,2]
[385658551,1757952645175,-150.0,0.00025273,2]
[385658552,1757952645184,-151.0,0.00025273,7]
[385658553,1757952645194,-222.601903,0.00025273,7]
[385658554,1757952645203,-151.0,0.000253,14]
[385658555,1757952645212,-151.698056,0.00025321,7]
[385658556,1757952645222,-151.0,0.00025321,7]
[385658557,1757952645233,-151.0,0.000254,13]
[385658558,1757952645249,-1000.0,0.00025421,2]
[385658559,1757952645260,-1000.0,0.00025421,2]
[385658560,1757952645270,-500.0,0.00025421,2]
[385658561,1757952645279,-1000.0,0.00025421,2]
[385658562,1757952645288,-712.64554417,0.00025469,2]
[385658564,1757952645297,-900.0,0.00025469,3]
[385658566,1757952645307,-480.0,0.00025479,3]
[385658568,1757952645316,-480.0,0.00025479,3]
[385658570,1757952645326,-480.0,0.00025479,3]
[385658572,1757952645336,-480.0,0.00025479,3]
[385658574,1757952645346,-480.0,0.00025479,3]
[385658577,1757952645355,-491.56994838,0.00025479,3]
[385658579,1757952645365,-293.09929543,0.00025479,3]
[385658581,1757952645375,-480.0,0.00025479,3]
[385658583,1757952645384,-480.0,0.00025479,3]
[385658585,1757952645393,-480.0,0.00025479,3]
[385658586,1757952645403,-151.0,0.00025479,7]
[385658587,1757952645413,-164.250993,0.00025479,7]
[385658588,1757952645423,-151.0,0.00025479,7]
[385658590,1757952645432,-159.39827,0.00025479,7]
[385658591,1757952645441,-198.0,0.00025479,7]
[385658592,1757952645451,-159.39827,0.00025479,7]
[385658593,1757952645461,-159.39827,0.00025479,7]
[385658594,1757952645473,-159.39827,0.00025479,7]
[385658595,1757952645482,-151.0,0.00025479,7]
[385658596,1757952645491,-506.59,0.00025479,3]
[385658597,1757952645501,-480.0,0.00025479,3]
[385658599,1757952645511,-151.0,0.00025479,7]
[385658600,1757952645520,-151.0,0.00025479,7]
[385658601,1757952645529,-214.016444,0.00025479,7]
[385658602,1757952645538,-151.0,0.00025479,7]
[385658603,1757952645548,-151.0,0.00025479,7]
[385658604,1757952645557,-151.0,0.00025479,7]
[385658605,1757952645566,-151.0,0.00025479,7]
[385658606,1757952645575,-268.498696,0.00025479,7]
[385658607,1757952645585,-151.0,0.00025479,7]
[385658608,1757952645594,-480.0,0.00025479,3]
[385658609,1757952645603,-480.0,0.00025479,3]
[385658610,1757952645612,-151.0,0.00025479,7]
[385658611,1757952645623,-480.0,0.00025479,3]
[385658612,1757952645632,-480.0,0.00025479,3]
[385658613,1757952645641,-480.0,0.00025479,3]
[385658614,1757952645651,-480.0,0.00025479,3]
[385658615,1757952645660,-151.0,0.00025479,7]
[385658616,1757952645669,-480.0,0.00025479,3]
[385658617,1757952645678,-480.0,0.00025479,3]
[385658618,1757952645687,-480.0,0.00025479,3]
[385658619,1757952645697,-151.0,0.00025479,7]
[385658620,1757952645706,-480.0,0.00025479,3]
[385658621,1757952645715,-504.29,0.00025479,3]
[385658622,1757952645725,-492.84,0.00025479,3]
[385658623,1757952645734,-480.0,0.00025479,3]
[385658624,1757952645744,-300.65084158,0.00025479,3]
[385658625,1757952645754,-480.0,0.00025479,3]
[385658626,1757952645763,-480.0,0.00025479,3]
[385658627,1757952645772,-480.0,0.00025479,3]
[385658628,1757952645782,-2363.02,0.00025479,3]
[385658629,1757952645792,-480.0,0.00025479,3]
[385658630,1757952645802,-480.0,0.00025479,3]
[385658632,1757952645812,-480.0,0.00025479,3]
[385658634,1757952645821,-746.3,0.00025479,3]
[385658636,1757952645831,-4376.03,0.00025479,3]
[385658638,1757952645841,-480.0,0.00025479,3]
[385658640,1757952645851,-151.0,0.00025479,7]
[385658641,1757952645861,-480.0,0.00025479,3]
[385658642,1757952645875,-3038.76,0.00025479,3]
[385658643,1757952645886,-480.0,0.00025479,3]
[385658644,1757952645900,-151.0,0.00025479,7]
[385658645,1757952645912,-151.0,0.00025479,7]
[385658646,1757952645923,-480.0,0.00025479,3]
[385658647,1757952645933,-151.0,0.00025479,7]
[385658648,1757952645944,-480.0,0.00025479,3]
[385658649,1757952645955,-480.0,0.00025479,3]
[385658650,1757952645966,-480.0,0.00025479,3]
[385658651,1757952645976,-569.79233446,0.00025479,3]
[385658652,1757952645987,-480.0,0.00025479,3]
[385658653,1757952645997,-480.0,0.00025479,3]
[385658654,1757952646007,-480.0,0.00025479,3]
[385658655,1757952646018,-480.0,0.00025479,3]
[385658657,1757952646029,-480.0,0.00025479,3]
[385658659,1757952646039,-480.0,0.00025479,3]
[385658661,1757952646049,-323.44098962,0.00025479,3]
[385658662,1757952646058,-480.0,0.00025479,3]
[385658664,1757952646068,-629.66,0.00025479,3]
[385658666,1757952646077,-480.0,0.00025479,3]
[385658668,1757952646087,-480.0,0.00025479,3]
[385658670,1757952646096,-480.0,0.00025479,3]
[385658672,1757952646106,-480.0,0.00025479,3]
[385658674,1757952646116,-480.0,0.00025479,3]
[385658676,1757952646131,-480.0,0.00025479,3]
[385658679,1757952646141,-480.0,0.00025479,3]
[385658682,1757952646150,-480.0,0.00025479,3]
[385658685,1757952646160,-480.0,0.00025479,3]
[385658687,1757952646170,-479.36,0.00025479,3]
[385658689,1757952646179,-156.5,0.00025479,3]
[385658691,1757952646189,-1283.5,0.00025479,3]
[385658693,1757952646199,-480.0,0.00025479,3]
[385658695,1757952646209,-197.72290171,0.00025479,3]
[385658697,1757952646219,-602.35,0.00025479,3]
[385658699,1757952646228,-216.0,0.0002548,2]
[385658701,1757952646238,-235.25824784,0.0002548,2]
[385658703,1757952646248,-216.02259423,0.0002548,2]
[385658704,1757952646257,-151.0,0.0002548,2]
[385658705,1757952646267,-550.0,0.0002548,2]
[385658706,1757952646276,-438.87724383,0.0002548,2]
[385658707,1757952646286,-507.55954621,0.0002548,2]
[385658708,1757952646295,-500.0,0.0002548,2]
[385658709,1757952646305,-151.0,0.0002548,2]
[385658710,1757952646314,-500.0,0.0002548,2]
[385658711,1757952646324,-901.0,0.00025485,2]
[385658712,1757952646333,-402.58382847,0.000255,2]
[385658713,1757952646343,-500.0,0.000255,2]
[385658714,1757952646352,-1000.0,0.00025521,2]
[385658715,1757952646363,-501.06223542,0.00025521,2]
[385658716,1757952646376,-1000.0,0.00025521,2]
[385658717,1757952646386,-1000.0,0.00025521,2]
[385658718,1757952646395,-318.61173722,0.00025521,2]
[385658719,1757952646404,-1000.0,0.00025521,2]
[385658720,1757952646413,-151.0,0.00025521,7]
[385658721,1757952646423,-160.0,0.00025557,2]
[385658722,1757952646433,-160.0,0.00025558,2]
[385658723,1757952646442,-160.0,0.00025558,2]
[385658724,1757952646451,-847.45018724,0.00025558,2]
[385658725,1757952646462,-150.0,0.00025606,2]
[385658726,1757952646476,-208.842,0.00025606,2]
[385658727,1757952646485,-250.0,0.00025606,2]
[385658728,1757952646494,-224.601,0.00025606,2]
[385658729,1757952646504,-250.0,0.00025606,2]
[385658730,1757952646513,-203.009,0.00025606,2]
[385658731,1757952646522,-262.482,0.00025606,2]
[385658732,1757952646532,-189.759,0.00025606,2]
[385658733,1757952646541,-977.0,0.00025606,2]
[385658734,1757952646551,-2156.0,0.00025606,2]
[385658735,1757952646562,-634.0,0.00025606,2]
[385658736,1757952646571,-160.0,0.00025619,2]
[385658737,1757952646580,-2351.0,0.00025631,2]
[385658739,1757952646590,-901.0,0.00025633,7]
[385658741,1757952646599,-587.0,0.00025636,2]
[385658743,1757952646608,-587.0,0.00025636,2]
[385658745,1757952646620,-660.0,0.0002564,2]
[385658747,1757952646629,-594.01024956,0.00025667,2]
[385658749,1757952646639,-151.0,0.00025684,7]
[385658751,1757952646648,-151.0,0.00025684,7]
[385658752,1757952646656,-151.0,0.00025684,7]
[385658753,1757952646666,-151.0,0.00025684,7]
[385658755,1757952646675,-5369.0,0.00025684,2]
[385658757,1757952646683,-151.0,0.00025684,7]
[385658759,1757952646693,-2752.09,0.000257,7]
[385658761,1757952646702,-221.555421,0.000257,7]
[385658762,1757952646711,-847.45018724,0.000257,7]
[385658763,1757952646722,-507.17,0.00025753,3]
[385658764,1757952646731,-480.0,0.00025753,3]
[385658765,1757952646826,-480.0,0.00025753,3]
[385658766,1757952646836,-291.97287705,0.00025753,3]
[385658767,1757952646846,-480.0,0.00025753,3]
[385658768,1757952646855,-480.0,0.00025753,3]
[385658769,1757952646867,-480.0,0.00025753,3]
[385658770,1757952646877,-480.0,0.00025753,3]
[385658771,1757952646886,-151.0,0.00025753,7]
[385658773,1757952646895,-151.0,0.00025753,7]
[385658775,1757952646905,-159.39827,0.00025753,7]
[385658777,1757952646914,-159.39827,0.00025753,7]
[385658779,1757952646924,-159.39827,0.00025753,7]
[385658781,1757952646934,-159.39827,0.00025753,7]
[385658783,1757952646946,-229.055452,0.00025753,7]
[385658785,1757952646961,-154.881776,0.00025753,7]
[385658786,1757952646974,-151.0,0.00025753,7]
[385658787,1757952646983,-181.752332,0.00025753,7]
[385658788,1757952646992,-199.726421,0.00025753,7]
[385658789,1757952647001,-151.0,0.00025753,7]
[385658790,1757952647011,-280.77,0.00025753,3]
[385658791,1757952647020,-480.0,0.00025753,3]
[385658792,1757952647030,-480.0,0.00025753,3]
[385658793,1757952647039,-480.0,0.00025753,3]
[385658794,1757952647048,-517.51955345,0.00025753,3]
[385658795,1757952647058,-480.0,0.00025753,3]
[385658796,1757952647067,-151.0,0.00025753,7]
[385658797,1757952647076,-480.0,0.00025753,3]
[385658798,1757952647085,-151.0,0.00025753,7]
[385658799,1757952647095,-504.29,0.00025753,3]
[385658800,1757952647104,-492.84,0.00025753,3]
[385658801,1757952647113,-480.0,0.00025753,3]
[385658802,1757952647124,-480.0,0.00025753,3]
[385658803,1757952647134,-480.0,0.00025753,3]
[385658804,1757952647143,-480.0,0.00025753,3]
[385658805,1757952647153,-2363.02,0.00025753,3]
[385658806,1757952647162,-480.0,0.00025753,3]
[385658807,1757952647171,-614.13449829,0.00025753,3]
[385658808,1757952647180,-480.0,0.00025753,3]
[385658809,1757952647189,-4376.03,0.00025753,3]
[385658810,1757952647199,-480.0,0.00025753,3]
[385658811,1757952647208,-495.69509768,0.00025753,3]
[385658812,1757952647216,-3038.76,0.00025753,3]
[385658813,1757952647225,-480.0,0.00025753,3]
[385658814,1757952647234,-548.36,0.00025753,3]
[385658815,1757952647244,-480.0,0.00025753,3]
[385658816,1757952647253,-480.0,0.00025753,3]
[385658817,1757952647263,-480.0,0.00025753,3]
[385658818,1757952647273,-480.0,0.00025753,3]
[385658819,1757952647282,-480.0,0.00025753,3]
[385658820,1757952647290,-480.0,0.00025753,3]
[385658821,1757952647299,-480.0,0.00025753,3]
[385658822,1757952647308,-480.0,0.00025753,3]
[385658823,1757952647318,-480.0,0.00025753,3]
[385658824,1757952647327,-629.66,0.00025753,3]
[385658825,1757952647336,-480.0,0.00025753,3]
[385658826,1757952647345,-480.0,0.00025753,3]
[385658827,1757952647354,-480.0,0.00025753,3]
[385658828,1757952647371,-480.0,0.00025753,3]
[385658829,1757952647380,-480.0,0.00025753,3]
[385658830,1757952647390,-480.0,0.00025753,3]
[385658831,1757952647400,-480.0,0.00025753,3]
[385658832,1757952647410,-480.0,0.00025753,3]
[385658833,1757952647419,-480.0,0.00025753,3]
[385658834,1757952647428,-1283.5,0.00025753,3]
[385658835,1757952647437,-480.0,0.00025753,3]
[385658836,1757952647446,-602.35,0.00025753,3]
[385658837,1757952647455,-227.38158039,0.00025754,2]
[385658838,1757952647465,-550.0,0.00025754,2]
[385658839,1757952647475,-500.0,0.00025754,2]
[385658840,1757952647485,-289.58799711,0.00025754,2]
[385658841,1757952647496,-500.0,0.00025754,2]
[385658842,1757952647505,-901.0,0.00025764,2]
[385658843,1757952647514,-1500.0,0.00025768,2]
[385658844,1757952647523,-1500.0,0.00025768,2]
[385658845,1757952647532,-1500.0,0.00025768,2]
[385658846,1757952647541,-500.57142924,0.00025768,2]
[385658847,1757952647550,-500.0,0.00025773,2]
[385658848,1757952647559,-500.0,0.0002578,2]
[385658849,1757952647568,-1000.0,0.00025821,2]
[385658850,1757952647577,-300.0,0.00025821,2]
[385658851,1757952647586,-250.0,0.00025821,2]
[385658852,1757952647595,-917.33848376,0.0002589,30]
[385658853,1757952647604,-348.29160089,0.00025968,2]
[385658854,1757952647612,-506.19060348,0.00025968,2]
[385658855,1757952647623,-1500.0,0.00025968,2]
[385658856,1757952647632,-500.0,0.0002599,2]
[385658857,1757952647641,-155598.7422785,0.00026,2]
[385658858,1757952647650,-1030.7129856,0.00026,10]
[385658859,1757952647660,-37414.70540317,0.00026,10]
[385658861,1757952688438,190.0,0.00030192,50]
[385658866,1757953035933,200.0,0.0002739,120]
[385658869,1757953254958,5000.0,0.00020526,2]
[385658879,1757953272267,5000.0,0.00020526,2]
[385658880,1757953281265,0.01,0.00020526,2]
[385658881,1757953281289,3917.3648815,0.00020526,2]
[385658890,1757953499714,-253.857916,0.00020868,2]
[385658891,1757953499737,-627.57466367,0.00020931,3]
[385658892,1757953499760,-1200.0,0.00021031,2]
[385658893,1757953499784,-300.0,0.00021031,2]
[385658894,1757953499807,-300.0,0.00021032,2]
[385658895,1757953499829,-272.0,0.00021032,2]
[385658896,1757953499853,-1200.0,0.00021032,2]
[385658897,1757953499877,-221.69078,0.00021245,2]
[385658898,1757953500063,5000.0,0.00020526,2]
[385658899,1757953525996,5000.0,0.00021245,2]
[385658912,1757953640755,308.0,0.00024,30]
[385658913,1757953644160,-330.87442174,0.00021244,2]
[385658919,1757953666236,10000.0,0.0002,2]
[385658928,1757953712121,179.1,0.00030187,50]
[385658929,1757953717619,0.01,0.0002,5]
[385658930,1757953717642,3395.43243622,0.0002,5]
[385658931,1757953725925,3313.0,0.00015,5]
[385658933,1757953756094,-5000.0,0.00020822,2]
[385658934,1757953756116,-3597.13362296,0.00021032,2]
[385658935,1757953756138,-300.0,0.0002136,2]
[385658936,1757953756157,-15370.81269173,0.00021361,2]
[385658974,1757953831918,-729.07263045,0.00021148,2]
[385658975,1757953831929,-1226.91779883,0.00021148,2]
[385658979,1757953831973,-850.00614396,0.00021148,2]
[385658980,1757953831984,-2194.00342676,0.00021148,2]
[385658981,1757953831994,-52.27553387,0.00021361,2]
[385658982,1757953832003,-174.23952393,0.00021459,2]
[385658983,1757953832011,-307.67868322,0.00022043,2]
[385658984,1757953832021,-160.0,0.0002241,2]
[385658985,1757953832030,-1200.0,0.00022432,2]
[385658987,1757953832039,-495.64016046,0.00022433,2]
[385658988,1757953832050,-704.35983954,0.00022433,2]
[385658991,1757953832059,-300.0,0.00022433,2]
[385658993,1757953832069,-500.0,0.00022434,2]
[385658995,1757953832079,-501.90046949,0.00022434,2]
[385658998,1757953832088,-112.1875836,0.00022434,2]
[385659001,1757953832100,-387.8124164,0.00022434,2]
[385659004,1757953832109,-500.0,0.00022434,2]
[385659006,1757953832119,-500.0,0.00022434,2]
[385659008,1757953832128,-500.0,0.00022434,2]
[385659010,1757953832138,-500.0,0.00022434,2]
[385659012,1757953832147,-500.0,0.00022434,2]
[385659014,1757953832156,-500.0,0.00022434,2]
[385659016,1757953832166,-247.33940078,0.00022434,2]
[385659018,1757953832175,-500.0,0.00022434,2]
[385659020,1757953832184,-504.82518163,0.00022434,2]
[385659022,1757953832195,-500.0,0.00022434,2]
[385659024,1757953832204,-500.0,0.00022434,2]
[385659026,1757953832214,-185.18869473,0.00022434,2]
[385659028,1757953832223,-500.0,0.00022434,2]
[385659030,1757953832232,-500.0,0.00022434,2]
[385659032,1757953832241,-203.60727841,0.00022434,2]
[385659034,1757953832251,-500.0,0.00022434,2]
[385659036,1757953832260,-555.77385908,0.00022434,2]
[385659038,1757953832269,-500.0,0.00022434,2]
[385659039,1757953832279,-500.0,0.00022434,2]
[385659042,1757953832289,-500.0,0.00022434,2]
[385659044,1757953832299,-500.0,0.00022434,2]
[385659045,1757953832307,-500.0,0.00022434,2]
[385659047,1757953832317,-500.0,0.00022434,2]
[385659049,1757953832327,-500.0,0.00022434,2]
[385659051,1757953832336,-16905.07140893,0.00022435,2]
[385659053,1757953832346,-164.51658755,0.00022473,2]
[385659055,1757953832355,-302.78704735,0.00022473,2]
[385659057,1757953832365,-164.75,0.00022775,2]
[385659059,1757953832374,-624.55294814,0.000228,2]
[385659061,1757953832383,-500.0,0.000228,2]
[385659063,1757953832393,-500.0,0.000228,2]